[Event "IIFL Wealth  4th Mumbai Junior U-13"]
[Site "Mumbai"]
[Date "2019.01.05"]
[Round "7"]
[White "Sadbhav Rautela"]
[Black "Kriti Mayur Patel"]
[Result "1-0"]
[ECO "C44"]
[WhiteElo "1746"]
[BlackElo "1439"]
[Annotator "NA RC"]
[PlyCount "91"]
[EventDate "2018.12.30"]
[EventType "swiss"]
[EventCountry "IND"]
[SourceTitle "playchess.com"]
[Source "ChessBase"]
[SourceQuality "1"]
[TimeControl "40/5400+30:1800+30"]

1. e4 {[%emt 0:00:00]} e5 {[%emt 0:00:00]} 2. Nf3 {[%emt 0:00:00]} Nc6 {[%emt 0:00:00]} 3. d4 exd4 {[%emt 0:00:00]} 4. Nxd4 {[%emt 0:00:00]} Bb4+ {[%emt 0:00:00]} 5. c3 {[%emt 0:00:01]} Bc5 {[%emt 0:00:00]} 6. Nxc6 {[%emt 0:00:07]} bxc6 {[%emt 0:00:25]} 7. Bd3 {[%emt 0:01:12]} d6 {[%emt 0:01:00]} 8. O-O {[%emt 0:00:34]} h6 {[%emt 0:01:29]} 9. Nd2 {[%emt 0:02:53]} Nf6 {[%emt 0:01:02]} 10. Nb3 {[%emt 0:03:10]} Bb6 {[%emt 0:01:15]} 11. h3 O-O 12. Bf4 {[%emt 0:06:07]} Re8 {[%emt 0:06:00]} 13. Qc2 {[%emt 0:01:14]} c5 {[%emt 0:03:16]} 14. Rad1 {[%emt 0:05:09]} c4 {[%emt 0:04:23]} 15. Bxc4 {[%emt 0:01:16]} Rxe4 {[%emt 0:00:44]} 16. Bd5 {[%emt 0:04:10]} Rxf4 {[%emt 0:02:49]} 17. Bxa8 {[%emt 0:00:32]} Ba6 {[%emt 0:00:47]} 18. g3 {[%emt 0:09:53]} Qxa8 {[%emt 0:07:23]} 19. gxf4 {[%emt 0:01:57]} Bxf1 {[%emt 0:01:40]} 20. Kxf1 {[%emt 0:08:24]} Qh1+ {[%emt 0:00:52]} 21. Ke2 {[%emt 0:00:17]} Qxh3 {[%emt 0:00:52]} 22. Qd3 {[%emt 0:18:51]} Qg4+ {[%emt 0:01:33]} 23. Qf3 {[%emt 0:02:18]} Qe6+ {[%emt 0:00:35]} 24. Kd3 {[%emt 0:01:51]} Qf5+ {[%emt 0:01:32]} 25. Ke2 {[%emt 0:03:32]} Qe6+ {[%emt 0:01:17]} 26. Kf1 {[%emt 0:00:13]} Ng4 {[%emt 0:01:40]} 27. Kg2 {[%emt 0:12:56]} Nxf2 {[%emt 0:01:37]} 28. Nd4 {[%emt 0:00:45]} Bxd4 {[%emt 0:01:22]} 29. Rxd4 {[%emt 0:00:30]} Ng4 {[%emt 0:01:05]} 30. Qa8+ {[%emt 0:01:19]} Kh7 {[%emt 0:00:40]} 31. Qe4+ {[%emt 0:00:09]} Qxe4+ {[%emt 0:00:27]} 32. Rxe4 {[%emt 0:00:00]} Nf6 {[%emt 0:00:08]} 33. Ra4 {[%emt 0:00:08]} Nd5 {[%emt 0:00:25]} 34. Kf3 {[%emt 0:00:18]} Kg6 {[%emt 0:00:49]} 35. Rxa7 {[%emt 0:00:11]} c6 {[%emt 0:00:49]} 36. Rd7 {[%emt 0:00:54]} f6 {[%emt 0:00:56]} 37. Rxd6 {[%emt 0:00:08]} h5 {[%emt 0:00:48]} 38. a4 {[%emt 0:00:15]} Nb6 {[%emt 0:01:06]} 39. a5 {[%emt 0:00:57]} Nc4 {[%emt 0:00:18]} 40. a6 {[%emt 0:00:00]} Nxd6 {[%emt 0:00:00]} 41. a7 {[%emt 0:00:09]} Nf5 {[%emt 0:00:43]} 42. a8=Q {[%emt 0:00:18]} h4 {[%emt 0:00:15]} 43. Qxc6 {[%emt 0:00:36]} h3 {[%emt 0:00:14]} 44. Qe4 {[%emt 0:01:13]} Kh5 {[%emt 0:01:00]} 45. Qxf5+ {[%emt 0:00:02]} Kh4 {[%emt 0:00:10]} 46. Qg4# {[%emt 0:00:06]} 1-0

[Event "IIFL Wealth  4th Mumbai Junior U-13"]
[Site "Mumbai"]
[Date "2019.01.05"]
[Round "7"]
[White "Mayank Chakraborty"]
[Black "Amrit Raunak"]
[Result "1-0"]
[ECO "C66"]
[WhiteElo "1691"]
[BlackElo "1410"]
[Annotator "NA RC"]
[PlyCount "74"]
[EventDate "2018.12.30"]
[EventType "swiss"]
[EventCountry "IND"]
[SourceTitle "playchess.com"]
[Source "ChessBase"]
[SourceQuality "1"]
[TimeControl "40/5400+30:1800+30"]

1. e4 {[%emt 0:00:00]} e5 {[%emt 0:00:00]} 2. Nf3 {[%emt 0:00:00]} Nc6 {[%emt 0:00:00]} 3. Bb5 {[%emt 0:00:00]} Nf6 {[%emt 0:00:03]} 4. O-O {[%emt 0:00:07]} d6 {[%emt 0:00:06]} 5. d4 {[%emt 0:01:24]} exd4 {[%emt 0:01:14]} 6. Nxd4 {[%emt 0:00:15]} Bd7 {[%emt 0:00:05]} 7. Nc3 {[%emt 0:00:44]} Nxd4 {[%emt 0:00:19]} 8. Bxd7+ {[%emt 0:00:18]} Qxd7 {[%emt 0:00:06]} 9. Qxd4 {[%emt 0:00:09]} Be7 {[%emt 0:00:14]} 10. Bg5 {[%emt 0:00:22]} O-O {[%emt 0:00:12]} 11. e5 {[%emt 0:01:14]} Ne8 {[%emt 0:02:07]} 12. Bf4 {[%emt 0:00:56]} Qf5 {[%emt 0:03:20]} 13. Nd5 {[%emt 0:01:02]} Qd7 {[%emt 0:04:51]} 14. Nxe7+ {[%emt 0:00:54]} Qxe7 {[%emt 0:00:23]} 15. exd6 {[%emt 0:00:38]} Nxd6 {[%emt 0:00:14]} 16. Bxd6 {[%emt 0:00:59]} Qxd6 {[%emt 0:00:24]} 17. Qxd6 {[%emt 0:00:06]} cxd6 {[%emt 0:00:04]} 18. Rfd1 {[%emt 0:00:08]} Rfd8 {[%emt 0:01:45]} 19. Rd4 {[%emt 0:00:40]} Rac8 {[%emt 0:01:54]} 20. c4 {[%emt 0:00:16]} Kf8 {[%emt 0:01:02]} 21. Rad1 {[%emt 0:00:29]} Ke7 {[%emt 0:00:34]} 22. b3 {[%emt 0:00:19]} Rc6 {[%emt 0:01:52]} 23. Re1+ {[%emt 0:00:33]} Kd7 {[%emt 0:00:18]} 24. Rde4 {[%emt 0:00:12]} Kc8 {[%emt 0:03:07]} 25. Re7 {[%emt 0:00:31]} Rc7 {[%emt 0:00:07]} 26. f4 {[%emt 0:00:39]} Rxe7 {[%emt 0:01:32]} 27. Rxe7 {[%emt 0:00:08]} Rd7 {[%emt 0:00:04]} 28. Re8+ {[%emt 0:00:19]} Kc7 {[%emt 0:00:12]} 29. Kf2 {[%emt 0:00:11]} d5 {[%emt 0:01:27]} 30. cxd5 {[%emt 0:00:25]} Rxd5 {[%emt 0:00:06]} 31. Rg8 {[%emt 0:01:16]} Rd7 {[%emt 0:06:36]} 32. Rxg7 {[%emt 0:00:14]} h5 {[%emt 0:00:27]} 33. Kg3 {[%emt 0:00:34]} Rd2 {[%emt 0:01:48]} 34. Rxf7+ {[%emt 0:00:14]} Kb6 {[%emt 0:00:07]} 35. f5 {[%emt 0:00:31]} Rxa2 {[%emt 0:05:54]} 36. Re7 {[%emt 0:00:33]} Ra1 {[%emt 0:00:22]} 37. Re3 {[%emt 0:00:14]} Kc7 1-0

[Event "IIFL Wealth  4th Mumbai Junior U-13"]
[Site "Mumbai"]
[Date "2019.01.05"]
[Round "7"]
[White "Shreyas Ghadi"]
[Black "Kadam Om Manish"]
[Result "1/2-1/2"]
[ECO "E06"]
[WhiteElo "1653"]
[BlackElo "1944"]
[Annotator "NA RC"]
[PlyCount "93"]
[EventDate "2018.12.30"]
[EventType "swiss"]
[EventCountry "IND"]
[SourceTitle "playchess.com"]
[Source "ChessBase"]
[SourceQuality "1"]
[TimeControl "40/5400+30:1800+30"]

1. d4 {[%emt 0:04:29]} Nf6 {[%emt 0:00:00]} 2. c4 {[%emt 0:00:52]} e6 {[%emt 0:00:00]} 3. g3 {[%emt 0:00:03]} d5 {[%emt 0:00:00]} 4. Nf3 {[%emt 0:00:04]} Be7 {[%emt 0:00:00]} 5. Bg2 {[%emt 0:00:04]} O-O {[%emt 0:00:00]} 6. O-O {[%emt 0:00:02]} dxc4 {[%emt 0:00:00]} 7. Ne5 {[%emt 0:00:06]} Nc6 {[%emt 0:00:08]} 8. Bxc6 {[%emt 0:00:03]} bxc6 {[%emt 0:00:05]} 9. Nxc6 {[%emt 0:00:04]} Qe8 {[%emt 0:00:05]} 10. Nxe7+ {[%emt 0:00:03]} Qxe7 {[%emt 0:00:04]} 11. Qa4 {[%emt 0:00:04]} c5 {[%emt 0:00:21]} 12. Qxc4 {[%emt 0:21:40]} cxd4 {[%emt 0:00:04]} 13. Qxd4 {[%emt 0:00:04]} e5 {[%emt 0:07:09] E05: Open Catalan: 5 Nf3 Be7} 14. Qh4 {[%emt 0:01:37]} Qe6 {[%emt 0:00:45]} (14... h6 15. Nc3 Bb7 16. Be3 Qe6 17. Qa4 Bc6 18. Qa6 Rfc8 19. f3 Rab8 20. Rab1 Nd5 21. Nxd5 Bxd5 22. Qxe6 Bxe6 {½-½ (30) Wang,Y (2679)-Wang,H (2710) Hangzhou 2018}) 15. Nc3 {[%emt 0:03:46]} Bb7 {[%emt 0:00:07]} 16. e4 {[%emt 0:05:16]} Rac8 {[%emt 0:03:06] LiveBook: 3 Games} 17. Be3 $146 {[%emt 0:04:10]} ({Predecessor:} 17. f3 Qb6+ 18. Kg2 h6 19. g4 Rxc3 20. bxc3 Nxe4 21. h3 Nxc3 {1-0 (47) Petrosyan,T (2315)-Oparin,G (2494) Jermuk 2012}) 17... a6 {[%emt 0:20:30]} 18. f3 {[%emt 0:06:28]} Ne8 {[%emt 0:00:22]} 19. g4 {[%emt 0:02:55]} Nd6 {[%emt 0:00:13]} 20. Qf2 {[%emt 0:00:55]} g6 {[%emt 0:02:53]} 21. Na4 {[%emt 0:06:14]} f5 {[%emt 0:04:31]} 22. Nc5 {[%emt 0:00:13]} Rxc5 {[%emt 0:10:34]} (22... Qf7 {might work better.}) 23. exf5 {[%emt 0:01:29]} ({Don't do} 23. Bxc5 fxg4 24. Bxd6 Qxd6) (23. gxf5 $18 gxf5 24. Bxc5) 23... gxf5 {[%emt 0:00:29]} 24. Bxc5 {[%emt 0:00:03]} fxg4 {[%emt 0:00:21]} 25. Qg3 {[%emt 0:00:06]} Bxf3 {[%emt 0:00:22]} 26. Bxd6 {[%emt 0:00:13]} Qxd6 27. Rxf3 {[%emt 0:01:34]} Rxf3 {[%emt 0:00:10]} 28. Qxg4+ {[%emt 0:00:10]} Qg6 {[%emt 0:00:02]} 29. Qxg6+ {[%emt 0:00:09]} hxg6 {[%emt 0:00:01]} 30. Rc1 {[%emt 0:03:54]} Rd3 {[%emt 0:02:09]} 31. Re1 {[%emt 0:03:32]} Rd2 {[%emt 0:01:41]} 32. Rxe5 {[%emt 0:00:10]} Rxb2 {[%emt 0:00:05]} 33. Ra5 {[%emt 0:00:16]} Rb6 {[%emt 0:00:08]} 34. Kg2 {[%emt 0:00:30]} Kg7 {[%emt 0:00:06]} 35. Kg3 {[%emt 0:00:17]} Kh6 {[%emt 0:01:02]} 36. Kg4 {[%emt 0:00:40]} g5 {[%emt 0:00:14]} 37. a3 {[%emt 0:01:38]} Rc6 {[%emt 0:00:41]} 38. Ra4 {[%emt 0:02:18]} Rf6 {[%emt 0:00:53]} 39. Ra5 {[%emt 0:00:18]} Rf4+ {[%emt 0:00:15]} 40. Kg3 {[%emt 0:00:00]} Rf6 {[%emt 0:00:00]} 41. Kg4 {[%emt 0:00:14]} Rd6 {[%emt 0:00:45]} 42. Ra4 {[%emt 0:00:22]} Rc6 {[%emt 0:00:35]} 43. Ra5 $11 {[%emt 0:00:04]} Rd6 {[%emt 0:01:16]} 44. Ra4 {[%emt 0:00:13]} Kg6 {[%emt 0:00:05]} 45. Ra5 {[%emt 0:00:02]} Rd4+ {[%emt 0:00:12]} 46. Kg3 {[%emt 0:00:05]} Rd3+ {[%emt 0:00:12]} 47. Kg4 {[%emt 0:00:06]} 1/2-1/2

[Event "IIFL Wealth  4th Mumbai Junior U-13"]
[Site "Mumbai"]
[Date "2019.01.05"]
[Round "7"]
[White "Makwana Devam"]
[Black "Tikam Aradhya"]
[Result "1/2-1/2"]
[ECO "C23"]
[WhiteElo "1617"]
[BlackElo "1332"]
[Annotator "NA"]
[PlyCount "110"]
[EventDate "2018.12.30"]
[EventType "swiss"]
[EventCountry "IND"]
[SourceTitle "playchess.com"]
[Source "ChessBase"]
[SourceQuality "1"]
[TimeControl "40/5400+30:1800+30"]

1. e4 {[%emt 0:00:00]} e5 {[%emt 0:00:00]} 2. Bc4 {[%emt 0:00:00]} Nc6 {[%emt 0:00:00]} 3. Nc3 {[%emt 0:00:00]} Bc5 {[%emt 0:00:00]} 4. d3 {[%emt 0:00:15]} d6 {[%emt 0:00:00]} 5. Na4 {[%emt 0:01:54]} Bb6 {[%emt 0:01:17]} 6. Nxb6 {[%emt 0:00:08]} axb6 {[%emt 0:00:03]} 7. f4 {[%emt 0:00:28]} Na5 {[%emt 0:00:39]} 8. Nf3 {[%emt 0:08:44]} Nxc4 {[%emt 0:05:33]} 9. dxc4 {[%emt 0:00:06]} exf4 {[%emt 0:01:52]} 10. Bxf4 {[%emt 0:10:07]} Ne7 {[%emt 0:01:43]} 11. O-O {[%emt 0:03:02]} O-O {[%emt 0:00:58]} 12. Bg5 {[%emt 0:13:18]} f6 {[%emt 0:03:04]} 13. Bh4 {[%emt 0:00:27]} Ng6 {[%emt 0:01:33]} 14. Qd5+ {[%emt 0:04:02]} Kh8 {[%emt 0:02:55]} 15. a3 {[%emt 0:03:23]} Qe8 {[%emt 0:03:49]} 16. Bg3 {[%emt 0:05:34]} Qf7 {[%emt 0:03:50]} 17. Qd3 {[%emt 0:02:26]} Qe7 {[%emt 0:03:39]} 18. Nd4 {[%emt 0:02:00]} Ne5 {[%emt 0:03:01]} 19. Bxe5 {[%emt 0:02:06]} dxe5 {[%emt 0:00:59]} 20. Ne2 {[%emt 0:03:21]} Be6 {[%emt 0:00:55]} 21. b4 {[%emt 0:02:41]} Qf7 {[%emt 0:02:38]} 22. c5 {[%emt 0:03:42]} bxc5 {[%emt 0:02:10]} 23. bxc5 {[%emt 0:00:08]} Bc4 {[%emt 0:00:40]} 24. Qe3 {[%emt 0:00:31]} Qe7 {[%emt 0:01:48]} 25. Rfe1 {[%emt 0:01:33]} Bxe2 {[%emt 0:00:36]} 26. Rxe2 {[%emt 0:00:14]} Ra5 {[%emt 0:00:53]} 27. Rb1 {[%emt 0:01:02]} c6 {[%emt 0:04:22]} 28. Rd2 {[%emt 0:02:08]} h6 {[%emt 0:04:17]} 29. Rd6 {[%emt 0:02:18]} Rfa8 {[%emt 0:07:08]} 30. Rb3 {[%emt 0:00:16]} Kh7 {[%emt 0:01:57]} 31. Rbd3 {[%emt 0:00:44]} Rb5 {[%emt 0:02:31]} 32. h3 {[%emt 0:03:37]} Rg8 {[%emt 0:03:25]} 33. Qf2 {[%emt 0:00:44]} Qf7 {[%emt 0:05:04]} 34. Rg3 {[%emt 0:07:15]} Qh5 {[%emt 0:03:08]} 35. Rgd3 {[%emt 0:00:53]} Qg6 {[%emt 0:01:16]} 36. Qe3 {[%emt 0:00:36]} Ra8 {[%emt 0:03:34]} 37. Rd7 {[%emt 0:01:06]} Rg8 {[%emt 0:00:49]} 38. Kh2 {[%emt 0:05:22]} Qg5 {[%emt 0:00:48]} 39. Qe2 {[%emt 0:00:59]} Rxc5 {[%emt 0:03:47]} 40. Rg3 {[%emt 0:00:00]} Qf4 {[%emt 0:00:00]} 41. Qh5 {[%emt 0:01:28]} Rc3 {[%emt 0:01:58]} 42. Qg6+ {[%emt 0:00:59]} Kh8 {[%emt 0:00:02]} 43. Rxg7 {[%emt 0:13:41]} Qxg3+ {[%emt 0:00:13]} 44. Qxg3 {[%emt 0:00:09]} Rxg3 {[%emt 0:00:10]} 45. Rxg3 {[%emt 0:00:02]} Rf8 {[%emt 0:03:07]} 46. Rd3 {[%emt 0:02:51]} Rf7 {[%emt 0:02:10]} 47. c4 {[%emt 0:01:51]} Kg7 {[%emt 0:03:41]} 48. g4 {[%emt 0:01:13]} Rc7 {[%emt 0:02:49]} 49. c5 {[%emt 0:00:14]} Kg6 {[%emt 0:01:13]} 50. Rd6 {[%emt 0:01:26]} Rc8 {[%emt 0:02:43]} 51. Rd3 {[%emt 0:05:23]} Ra8 {[%emt 0:00:18]} 52. Kg3 {[%emt 0:02:27]} Ra4 {[%emt 0:00:51]} 53. Rb3 {[%emt 0:01:02]} Ra5 {[%emt 0:04:30]} 54. Rc3 Ra4 55. Rb3 Ra5 1/2-1/2

[Event "IIFL Wealth  4th Mumbai Junior U-13"]
[Site "Mumbai"]
[Date "2019.01.05"]
[Round "7"]
[White "Kadam Rishi R"]
[Black "Ananya Arumbakkam"]
[Result "1/2-1/2"]
[ECO "C54"]
[WhiteElo "1604"]
[BlackElo "1405"]
[Annotator "NA RC"]
[PlyCount "74"]
[EventDate "2018.12.30"]
[EventType "swiss"]
[EventCountry "IND"]
[SourceTitle "playchess.com"]
[Source "ChessBase"]
[SourceQuality "1"]
[TimeControl "40/5400+30:1800+30"]

1. e4 {[%emt 0:00:00]} e5 {[%emt 0:00:00]} 2. Nf3 {[%emt 0:00:00]} Nc6 {[%emt 0:00:05]} 3. Bc4 {[%emt 0:00:00]} Bc5 {[%emt 0:00:11]} 4. c3 {[%emt 0:00:09]} Nf6 {[%emt 0:00:06]} 5. d3 {[%emt 0:00:03]} O-O {[%emt 0:00:14]} 6. O-O {[%emt 0:00:09]} d6 {[%emt 0:00:08]} 7. Nbd2 {[%emt 0:00:18]} Ne7 {[%emt 0:00:10]} 8. d4 {[%emt 0:01:47]} exd4 {[%emt 0:04:32]} 9. cxd4 {[%emt 0:00:06]} Bb6 {[%emt 0:01:35]} 10. h3 {[%emt 0:03:06]} d5 {[%emt 0:02:56]} 11. e5 {[%emt 0:11:28]} Ne4 {[%emt 0:02:30]} 12. Bd3 {[%emt 0:01:52]} Bf5 {[%emt 0:08:12]} 13. Re1 {[%emt 0:04:08]} Nxd2 {[%emt 0:02:41]} 14. Qxd2 {[%emt 0:00:07]} h6 {[%emt 0:03:13]} 15. Qe2 {[%emt 0:08:38]} Qd7 {[%emt 0:01:41]} 16. Be3 {[%emt 0:01:23]} Nc6 {[%emt 0:05:54]} 17. Kh1 {[%emt 0:09:02]} Nb4 {[%emt 0:01:44]} 18. Bb5 {[%emt 0:11:48]} Qe7 {[%emt 0:20:58]} 19. Ba4 {[%emt 0:02:42]} c5 {[%emt 0:01:34]} 20. a3 {[%emt 0:14:52]} Nd3 {[%emt 0:01:44]} 21. Red1 {[%emt 0:00:21]} c4 {[%emt 0:00:46]} 22. Bc2 {[%emt 0:00:07]} Be4 {[%emt 0:06:05]} 23. Bb1 {[%emt 0:09:40]} Qd7 {[%emt 0:02:24]} 24. Ne1 {[%emt 0:05:46]} Nxe1 {[%emt 0:24:03]} 25. Bxe4 {[%emt 0:00:14]} dxe4 {[%emt 0:00:10]} 26. Qxe1 {[%emt 0:00:18]} Qd5 {[%emt 0:01:52]} 27. Rac1 {[%emt 0:01:18]} Rac8 {[%emt 0:00:43]} 28. Qe2 {[%emt 0:00:29]} f5 {[%emt 0:01:06]} 29. f4 {[%emt 0:03:30]} a6 {[%emt 0:02:57]} 30. Rc2 {[%emt 0:01:32]} Rc7 {[%emt 0:00:17]} 31. Rdc1 {[%emt 0:01:22]} Rfc8 {[%emt 0:00:34]} 32. Qh5 {[%emt 0:01:32]} Qf7 {[%emt 0:00:13]} 33. Qe2 {[%emt 0:00:08]} Qd5 {[%emt 0:00:04]} 34. Qh5 {[%emt 0:00:07]} Qf7 {[%emt 0:00:03]} 35. Qe2 {[%emt 0:00:04]} Qd5 {[%emt 0:00:05]} 36. Qh5 {[%emt 0:00:06]} Qf7 {[%emt 0:00:02]} 37. Qe2 {[%emt 0:00:07]} Qd5 {[%emt 0:00:03]} 1/2-1/2

[Event "IIFL Wealth  4th Mumbai Junior U-13"]
[Site "Mumbai"]
[Date "2019.01.05"]
[Round "7"]
[White "Tejes Suresh Kumar"]
[Black "Adreeja Sinha"]
[Result "1-0"]
[ECO "B52"]
[WhiteElo "1586"]
[BlackElo "1366"]
[Annotator "NA RC"]
[PlyCount "79"]
[EventDate "2018.12.30"]
[EventType "swiss"]
[EventCountry "IND"]
[SourceTitle "playchess.com"]
[Source "ChessBase"]
[SourceQuality "1"]
[TimeControl "40/5400+30:1800+30"]

1. e4 {[%emt 0:00:00]} c5 {[%emt 0:00:00]} 2. Nf3 {[%emt 0:00:00]} d6 {[%emt 0:00:00]} 3. Bb5+ {[%emt 0:00:00]} Bd7 {[%emt 0:00:06]} 4. Bxd7+ {[%emt 0:00:00]} Qxd7 5. c4 {[%emt 0:02:14]} Nf6 {[%emt 0:01:02]} 6. Nc3 {[%emt 0:00:11]} g6 {[%emt 0:01:43]} 7. d4 {[%emt 0:01:18]} cxd4 {[%emt 0:01:10]} 8. Nxd4 {[%emt 0:00:07]} Bg7 {[%emt 0:01:25]} 9. f3 {[%emt 0:00:45]} Nc6 {[%emt 0:00:56]} 10. Be3 {[%emt 0:01:29]} O-O {[%emt 0:00:16]} 11. O-O {[%emt 0:00:08]} Rac8 {[%emt 0:02:15]} 12. b3 {[%emt 0:01:02]} Qc7 {[%emt 0:07:56]} 13. Qd2 {[%emt 0:04:57]} a6 {[%emt 0:03:31]} 14. Rac1 {[%emt 0:00:56]} Qb8 {[%emt 0:04:20]} 15. Nxc6 {[%emt 0:04:16]} Rxc6 {[%emt 0:07:53]} 16. Kh1 {[%emt 0:17:53]} b5 {[%emt 0:10:05]} 17. cxb5 {[%emt 0:00:40]} axb5 {[%emt 0:02:15]} 18. Nd5 {[%emt 0:00:54]} Rxc1 {[%emt 0:02:24]} 19. Nxe7+ {[%emt 0:00:29]} Kh8 {[%emt 0:00:10]} 20. Rxc1 {[%emt 0:00:05]} Re8 {[%emt 0:04:07]} 21. Nc6 {[%emt 0:01:12]} Qc7 {[%emt 0:01:09]} 22. Bf4 {[%emt 0:00:30]} Rc8 {[%emt 0:09:02]} 23. Bxd6 {[%emt 0:10:18]} Qd7 {[%emt 0:08:46]} 24. Ne5 {[%emt 0:00:18]} Qb7 {[%emt 0:05:16]} 25. Nxf7+ {[%emt 0:10:57]} Kg8 {[%emt 0:00:46]} 26. Ne5 {[%emt 0:01:31]} Rd8 {[%emt 0:07:00]} 27. Qb4 {[%emt 0:00:53]} Ne8 {[%emt 0:02:09]} 28. Be7 {[%emt 0:07:50]} Ra8 {[%emt 0:01:10]} 29. Qc5 {[%emt 0:02:43]} Bxe5 {[%emt 0:03:53]} 30. Qxe5 {[%emt 0:00:39]} Rxa2 {[%emt 0:00:13]} 31. Bc5 {[%emt 0:04:17]} Qc8 {[%emt 0:02:14]} 32. Qd5+ {[%emt 0:00:06]} Kg7 {[%emt 0:00:42]} 33. Bd4+ {[%emt 0:00:13]} Nf6 {[%emt 0:00:20]} 34. Rxc8 {[%emt 0:00:17]} Re2 {[%emt 0:01:13]} 35. Bxf6+ {[%emt 0:01:55]} Kxf6 {[%emt 0:00:12]} 36. Rc6+ {[%emt 0:01:02]} Kg7 {[%emt 0:00:07]} 37. Qe5+ {[%emt 0:00:34]} Kh6 {[%emt 0:00:33]} 38. Qf4+ {[%emt 0:00:06]} Kh5 {[%emt 0:00:20]} 39. g4+ {[%emt 0:00:33]} Kh4 {[%emt 0:00:07]} 40. Qh6# {[%emt 0:00:00]} 1-0

[Event "IIFL Wealth  4th Mumbai Junior U-13"]
[Site "Mumbai"]
[Date "2019.01.05"]
[Round "7"]
[White "Bang Atharva"]
[Black "Srivatsan Karthikeyan"]
[Result "0-1"]
[ECO "D05"]
[WhiteElo "1582"]
[BlackElo "1288"]
[Annotator "NA RC"]
[PlyCount "122"]
[EventDate "2018.12.30"]
[EventType "swiss"]
[EventCountry "IND"]
[SourceTitle "playchess.com"]
[Source "ChessBase"]
[SourceQuality "1"]
[TimeControl "40/5400+30:1800+30"]

1. d4 Nf6 2. Nf3 d5 3. e3 e6 4. Bd3 Be7 5. O-O O-O 6. b3 b6 7. Bb2 Bb7 8. Nbd2 Nbd7 9. Ne5 c5 10. f4 Ne4 11. Bxe4 dxe4 12. Nxd7 Qxd7 13. Qe2 Bf6 14. Nc4 cxd4 15. Rfd1 Qc6 16. Bxd4 Bxd4 17. Rxd4 Ba6 18. Ne5 Qc3 19. Qe1 Qxc2 20. Rd2 Qc3 21. Rc1 Qa5 22. Nc6 Qa3 23. Qd1 Bb7 24. Ne5 Bd5 25. Qc2 Qa6 26. Nc6 Bxc6 27. b4 Bd5 28. Qb2 Rac8 29. Rdc2 Rxc2 30. Rxc2 Qd3 31. Qc1 h6 32. Qd2 Qxd2 33. Rxd2 Rc8 34. Kf2 Rc3 35. f5 Ra3 36. fxe6 Bxe6 37. Rd8+ Kh7 38. Rd4 Rxa2+ 39. Kg3 Bf5 40. h3 Re2 41. Kf4 Bg6 42. g4 Rf2+ 43. Kg3 Rf3+ 44. Kg2 Rxe3 45. h4 h5 46. gxh5 Bxh5 47. Kf2 Rf3+ 48. Ke1 e3 49. Re4 Rh3 50. Rf4 Rh1+ 51. Rf1 Rxf1+ 52. Kxf1 f5 53. b5 f4 54. Ke1 Kg6 55. Kf1 Kf5 56. Kg2 f3+ 57. Kf1 Ke4 58. Ke1 Kd3 59. Kd1 f2+ 60. Kc1 f1=Q+ 61. Kb2 Qd1 0-1

[Event "IIFL Wealth  4th Mumbai Junior U-13"]
[Site "Mumbai"]
[Date "2019.01.05"]
[Round "7"]
[White "Laddha, Shubh Jayesh"]
[Black "Zia, Tahsin Tajwar"]
[Result "1/2-1/2"]
[ECO "B52"]
[WhiteElo "1567"]
[BlackElo "1925"]
[Annotator "NA RC"]
[PlyCount "62"]
[EventDate "2018.12.30"]
[EventType "swiss"]
[EventCountry "IND"]
[SourceTitle "playchess.com"]
[Source "ChessBase"]
[SourceQuality "1"]
[TimeControl "40/5400+30:1800+30"]

1. e4 {[%emt 0:00:00]} c5 {[%emt 0:00:00]} 2. Nf3 {[%emt 0:00:00]} d6 {[%emt 0:00:00]} 3. Bb5+ {[%emt 0:00:00]} Bd7 {[%emt 0:00:00]} 4. Bxd7+ {[%emt 0:00:00]} Nxd7 {[%emt 0:00:04]} 5. O-O {[%emt 0:00:00]} Ngf6 {[%emt 0:00:25]} 6. Qe2 {[%emt 0:00:00]} Rc8 {[%emt 0:01:56]} 7. d3 {[%emt 0:00:16] B52: Sicilian: Moscow Variation with 3...Bd7} (7. c3 e6 8. d4 cxd4 9. cxd4 d5 10. e5 Ne4 11. Be3 Nb6 12. Ne1 f5 13. f3 Ng5 14. b3 Nf7 {½-½ (30) Mamedov,R (2680)-Ivanchuk,V (2729) Kocaeli 2017}) 7... g6 {[%emt 0:00:24]} 8. Nc3 {[%emt 0:07:03]} Bg7 {[%emt 0:00:17]} 9. h3 $146 {[%emt 0:03:52]} ({Predecessor:} 9. Bg5 O-O 10. Nd2 Ne5 11. f4 Nc6 12. Rae1 Nd4 13. Qd1 b5 14. Nf3 h6 {0-1 (32) Kizatbay,A (2088)-O'Gorman,T (2280) Helsingor 2018}) 9... O-O {[%emt 0:00:21]} 10. Bg5 {[%emt 0:06:43]} h6 {[%emt 0:03:05]} 11. Be3 {[%emt 0:03:45]} Nb8 {[%emt 0:05:53]} 12. Qd2 {[%emt 0:03:28]} Kh7 {[%emt 0:00:17]} 13. Ne2 {[%emt 0:11:30]} Nc6 {[%emt 0:04:03]} 14. c3 {[%emt 0:03:24]} a6 {[%emt 0:07:07]} 15. Ng3 {[%emt 0:06:23]} e6 {[%emt 0:02:48]} 16. Rfc1 {[%emt 0:11:45]} Qe7 {[%emt 0:02:11]} 17. d4 {[%emt 0:01:16]} cxd4 {[%emt 0:00:51]} 18. cxd4 {[%emt 0:00:29]} d5 {[%emt 0:00:52]} 19. e5 {[%emt 0:01:59]} Ne4 {[%emt 0:08:18]} 20. Qe2 {[%emt 0:01:34]} Nxg3 {[%emt 0:03:18]} 21. fxg3 {[%emt 0:00:07]} Na5 {[%emt 0:00:24]} 22. b3 {[%emt 0:04:34]} Qa3 {[%emt 0:04:29]} 23. Ne1 {[%emt 0:02:36]} Qe7 {[%emt 0:10:18]} 24. Nd3 {[%emt 0:02:44]} b6 (24... Nc6 $11) 25. Nf2 {[%emt 0:03:04]} Ra8 {[%emt 0:14:02]} 26. Qd2 {[%emt 0:05:15]} Rfc8 {[%emt 0:06:51]} 27. Ng4 $16 {[%emt 0:02:34]} Qf8 {[%emt 0:04:05]} 28. Rf1 {[%emt 0:06:55]} Ra7 {[%emt 0:02:39]} 29. Rfc1 {[%emt 0:00:54]} Raa8 {[%emt 0:00:13]} 30. Rf1 {[%emt 0:00:08]} Ra7 {[%emt 0:00:15]} 31. Rfc1 {[%emt 0:00:11]} Raa8 {[%emt 0:00:00]} 1/2-1/2